bitfinex-derivatives/quotes_BTCF0:USTF0_20250426
["timestamp","ask_amount","ask_price","bid_price","bid_amount"]
[1745659075493,0.0681,94420.0,94419.0,0.40938864]
[1745659077190,0.0681,94420.0,94419.0,0.39697528]
[1745659077582,0.008,94420.0,94419.0,0.39697528]
[1745659078092,0.0052,94428.0,94427.0,0.2117148]
[1745659078293,0.0052,94428.0,94427.0,0.70147793]
[1745659078892,0.0052,94428.0,94427.0,0.79347793]
[1745659079087,0.0052,94428.0,94427.0,0.96147793]
[1745659079396,0.0152,94428.0,94427.0,0.94906595]
[1745659080692,0.0112,94428.0,94427.0,0.94906595]
[1745659080892,0.0142,94428.0,94427.0,0.94906595]
[1745659081489,0.0082,94428.0,94427.0,0.94906595]
[1745659081789,0.0092,94428.0,94427.0,0.94906595]
[1745659084990,0.5817126,94428.0,94427.0,0.28455115]
[1745659085183,0.5817126,94428.0,94427.0,0.22826595]
[1745659085886,0.6431126,94428.0,94427.0,0.22826595]
[1745659086084,0.6531126,94428.0,94427.0,0.22826595]
[1745659092094,0.6531126,94428.0,94427.0,0.22778003]
[1745659092801,0.2923126,94428.0,94427.0,0.22778003]
[1745659095597,0.2923126,94428.0,94427.0,0.22826577]
[1745659099303,0.2923126,94428.0,94427.0,0.22792329]
[1745659099699,0.2923126,94428.0,94427.0,0.2117148]
[1745659100707,0.2923126,94428.0,94427.0,0.2276885]
[1745659103000,0.2923126,94428.0,94427.0,0.2935885]
[1745659103199,0.2611126,94428.0,94427.0,0.2935885]
[1745659104400,0.0494,94428.0,94427.0,0.2935885]
[1745659104594,0.0192,94428.0,94427.0,0.2935885]
[1745659104806,0.0192,94428.0,94427.0,0.3935885]
[1745659105109,0.0092,94428.0,94427.0,0.5615885]
[1745659107603,0.2116874,94440.0,94439.0,0.2116857]
[1745659107808,0.2933874,94440.0,94439.0,0.24007135]
[1745659108009,0.2933874,94440.0,94439.0,0.24007134]
[1745659108309,0.2933874,94440.0,94439.0,0.34007134]
[1745659108703,0.3023874,94440.0,94439.0,0.34007134]
[1745659109309,0.0907,94440.0,94439.0,0.35168406]
[1745659109705,0.3023857,94440.0,94439.0,0.35168406]
[1745659111313,0.3347857,94440.0,94439.0,0.35168406]
[1745659111514,0.3347857,94440.0,94439.0,0.13999836]
[1745659111814,0.3649857,94440.0,94439.0,0.03999836]
[1745659112303,0.3649857,94440.0,94439.0,0.04057278]
[1745659112812,0.3649857,94440.0,94439.0,0.25226068]
[1745659113411,0.3649857,94440.0,94439.0,0.25225983]
[1745659115015,0.3347857,94440.0,94439.0,0.25225983]
[1745659115316,0.1231,94440.0,94439.0,0.25225983]
[1745659116105,0.1231,94440.0,94439.0,0.25225978]
[1745659116307,0.3347857,94440.0,94439.0,0.25225978]
[1745659117816,0.3347857,94440.0,94439.0,0.2683411]
[1745659121414,0.3347857,94440.0,94439.0,0.25225978]
[1745659123407,0.1231,94440.0,94439.0,0.25225978]
[1745659123820,0.1231,94440.0,94439.0,0.28385978]
[1745659124520,0.3347857,94440.0,94439.0,0.28385978]
[1745659125512,0.1231,94440.0,94439.0,0.28385977]
[1745659126817,0.1231,94440.0,94439.0,0.31415977]
[1745659127417,0.3347857,94440.0,94439.0,0.31415977]
[1745659128828,0.1231,94440.0,94439.0,0.31415977]
[1745659130222,0.0907,94440.0,94439.0,0.31415977]
[1745659130421,0.0907,94440.0,94439.0,0.41415977]
[1745659130623,0.0013,94451.0,94450.0,0.2116633]
[1745659130824,0.0613,94451.0,94450.0,0.24062245]
[1745659131027,0.0613,94451.0,94450.0,0.34062245]
[1745659131225,0.0613,94451.0,94450.0,0.50862245]
[1745659131622,0.272961,94451.0,94450.0,0.50862245]
[1745659131822,0.277961,94451.0,94450.0,0.50862245]
[1745659132028,0.277961,94451.0,94450.0,0.29695915]
[1745659132227,0.277961,94451.0,94450.0,0.01241106]
[1745659132621,0.590261,94451.0,94450.0,0.01241106]
[1745659132916,0.2116812,94443.0,94441.0,0.0315]
[1745659133121,0.3049812,94442.0,94441.0,0.2431834]
[1745659133328,0.3049812,94442.0,94441.0,0.27214235]
[1745659133719,0.3249812,94442.0,94441.0,0.27214235]
[1745659134728,0.3249812,94442.0,94441.0,0.27214237]
[1745659135427,0.2939812,94442.0,94441.0,0.27214237]
[1745659135628,0.2939812,94442.0,94441.0,0.33514237]
[1745659135828,0.2949812,94442.0,94441.0,0.33514237]
[1745659137931,0.2749812,94442.0,94441.0,0.33514237]
[1745659138332,0.2749812,94442.0,94441.0,0.33514238]
[1745659139032,0.26703817,94442.0,94441.0,0.35128655]
[1745659140745,0.27703817,94442.0,94441.0,0.35128655]
[1745659141243,0.27703817,94442.0,94441.0,0.33514238]
[1745659141445,0.27703817,94442.0,94441.0,0.33514236]
[1745659143346,0.27703817,94442.0,94441.0,0.30234236]
[1745659143535,0.27703817,94442.0,94441.0,0.27214236]
[1745659144141,0.211726,94424.0,94423.0,0.2646402]
[1745659144441,0.0529296,94426.0,94423.0,0.033]
[1745659144648,0.5725215,94424.0,94423.0,0.25637977]
[1745659144949,0.5725215,94424.0,94423.0,0.22337977]
[1745659145349,0.6049215,94424.0,94423.0,0.22337977]
[1745659145849,0.6049215,94424.0,94423.0,0.22837977]
[1745659146855,0.6149215,94424.0,94423.0,0.23437977]
[1745659147352,0.6149215,94424.0,94423.0,0.011]
[1745659147651,0.6454215,94424.0,94423.0,0.2227238]
[1745659147849,0.2117305,94420.0,94419.0,0.00809133]
[1745659148055,0.2117529,94410.0,94409.0,0.0309]
[1745659148248,0.2117529,94410.0,94409.0,0.25406368]
[1745659148647,0.2741529,94410.0,94409.0,0.25406368]
[1745659149151,0.2741529,94410.0,94409.0,0.42206368]
[1745659150257,0.2751529,94410.0,94409.0,0.26406368]
[1745659150647,0.2751529,94410.0,94409.0,0.27606368]
[1745659151355,0.2751529,94410.0,94409.0,0.28383743]
[1745659152846,0.2751529,94410.0,94409.0,0.02977375]
[1745659153355,0.3071529,94410.0,94409.0,0.02977375]
[1745659153548,0.5871529,94410.0,94409.0,0.02977375]
[1745659153742,0.6930729,94410.0,94409.0,0.02977375]
[1745659153948,0.2118202,94381.0,94380.0,0.0529548]
[1745659154151,0.2118202,94381.0,94380.0,0.325575]
[1745659154354,0.2118202,94381.0,94380.0,0.33719528]
[1745659154656,0.2118202,94381.0,94380.0,0.34522624]
[1745659155655,0.2138202,94381.0,94380.0,0.36822624]
[1745659156150,0.2128202,94381.0,94380.0,0.35722624]
[1745659156357,0.2138202,94381.0,94380.0,0.36322624]
[1745659159343,0.002,94381.0,94380.0,0.36322624]
[1745659159546,0.213818,94381.0,94380.0,0.36322624]
[1745659159756,0.002,94381.0,94380.0,0.36322624]
[1745659159953,0.001,94381.0,94380.0,0.51745525]
[1745659160153,0.2117859,94396.0,94395.0,0.2117843]
[1745659160365,0.2117859,94396.0,94395.0,0.3117843]
[1745659161458,0.3608,94397.0,94396.0,0.2117843]
[1745659162049,0.5725821,94397.0,94396.0,0.2117843]
[1745659162251,0.5725821,94397.0,94396.0,0.3797843]
[1745659162961,0.5735821,94397.0,94396.0,0.3857843]
[1745659163257,0.5745821,94397.0,94396.0,0.3907843]
[1745659166954,0.2137821,94397.0,94396.0,0.3907843]
[1745659168857,0.2460821,94397.0,94396.0,0.3907843]
[1745659169056,0.0343,94397.0,94396.0,0.3907843]
[1745659169955,0.6168821,94397.0,94396.0,0.179]
[1745659170157,1.1028181,94397.0,94396.0,0.011]
[1745659170549,1.1028181,94397.0,94396.0,0.2227843]
[1745659171259,1.1648821,94397.0,94396.0,0.2227843]
[1745659172068,0.9448821,94397.0,94396.0,0.2227843]
[1745659173256,0.7768821,94397.0,94396.0,0.2227843]
[1745659174967,0.4160821,94397.0,94396.0,0.2227843]
[1745659175166,0.7768821,94397.0,94396.0,0.2227843]
[1745659175368,0.7768821,94397.0,94396.0,0.23881958]
[1745659176169,0.7768821,94397.0,94396.0,0.02703528]
[1745659178473,0.7768821,94397.0,94396.0,0.2227843]
[1745659178673,0.5351,94397.0,94396.0,0.23908217]
[1745659178968,0.7145821,94397.0,94396.0,0.23908217]
[1745659179163,0.3537821,94397.0,94396.0,0.50708217]
[1745659179463,0.3537821,94397.0,94396.0,0.57058217]
[1745659180265,0.3458355,94397.0,94396.0,0.58663413]
[1745659181372,0.1340534,94397.0,94396.0,0.58663413]
[1745659181570,0.1340534,94397.0,94396.0,0.57058217]
[1745659182573,0.1340534,94397.0,94396.0,0.5708397]
[1745659182773,0.2647136,94402.0,94401.0,0.2117709]
[1745659182970,0.2647136,94402.0,94401.0,0.2283263]
[1745659183170,0.2979136,94402.0,94401.0,0.3963263]
[1745659183569,0.3298136,94402.0,94401.0,0.3963263]
[1745659183875,0.3308136,94402.0,94401.0,0.3963263]
[1745659184865,0.3338136,94402.0,94401.0,0.3963263]
[1745659187376,0.3338136,94402.0,94401.0,0.39632642]
[1745659188786,0.3438136,94402.0,94401.0,0.39632642]
[1745659193375,0.3119136,94402.0,94401.0,0.39632642]
[1745659193783,0.3119136,94402.0,94401.0,0.42702642]
[1745659195073,0.3019136,94402.0,94401.0,0.42702642]
[1745659196885,0.3019136,94402.0,94401.0,0.45862642]
[1745659197880,0.2687136,94402.0,94401.0,0.45862642]
[1745659198182,0.3008136,94402.0,94401.0,0.45862642]
[1745659199678,0.3108136,94402.0,94401.0,0.45862642]
[1745659200179,0.2787136,94402.0,94401.0,0.45862642]
[1745659200775,0.3103136,94402.0,94401.0,0.45862642]
[1745659204086,0.3323136,94402.0,94401.0,0.18455552]
[1745659204285,0.264769,94384.0,94383.0,0.2647619]
[1745659204487,0.274769,94384.0,94383.0,0.2647619]
[1745659204877,0.2218158,94384.0,94383.0,0.2647619]
[1745659205078,0.2775158,94384.0,94383.0,0.2647619]
[1745659205283,0.2775158,94384.0,94383.0,0.3257619]
[1745659205779,0.2875158,94384.0,94383.0,0.3257619]
[1745659205981,0.2885158,94384.0,94383.0,0.3347619]
[1745659206687,0.2785158,94384.0,94383.0,0.3347619]
[1745659207087,0.2795158,94384.0,94383.0,0.3437619]
[1745659207290,0.002,94384.0,94383.0,0.3437619]
[1745659207486,0.2138113,94384.0,94383.0,0.3437619]
[1745659209988,0.002,94384.0,94383.0,0.3437619]
[1745659210381,0.6255209,94402.0,94401.0,0.2117731]
[1745659210585,0.6355209,94402.0,94401.0,0.2117731]
[1745659212484,0.6365209,94402.0,94401.0,0.2117731]
[1745659212685,0.6395209,94402.0,94401.0,0.2117731]
[1745659214186,0.427743,94402.0,94394.0,0.0333]
[1745659214494,0.2647598,94390.0,94389.0,0.2117924]
[1745659215181,0.2118091,94390.0,94389.0,0.2117924]
[1745659215378,0.2731091,94390.0,94389.0,0.2117924]
[1745659215787,0.2731091,94390.0,94389.0,0.2431924]
[1745659216187,0.2741091,94390.0,94389.0,0.27525019]
[1745659216486,0.0324,94390.0,94389.0,0.27525019]
[1745659216687,0.2441978,94390.0,94389.0,0.27525019]
[1745659217082,0.002,94390.0,94389.0,0.27525019]
[1745659217276,0.2137978,94390.0,94389.0,0.27525019]
[1745659220384,0.2137978,94390.0,94389.0,0.2757486]
[1745659220782,0.002,94390.0,94389.0,0.2757486]
[1745659220989,0.2137978,94390.0,94389.0,0.2757486]
[1745659223996,0.2452978,94390.0,94389.0,0.2757486]
[1745659225190,0.2452978,94390.0,94389.0,0.27502492]
[1745659225390,0.2452978,94390.0,94389.0,0.2591924]
[1745659226089,0.0335,94390.0,94389.0,0.2591924]
[1745659226491,0.0335,94390.0,94389.0,0.27513445]
[1745659226888,0.002,94390.0,94389.0,0.27513445]
[1745659227088,0.0347,94390.0,94389.0,0.27513445]
[1745659227694,0.0347,94390.0,94389.0,0.27543557]
[1745659230284,0.0656,94390.0,94389.0,0.27543557]
[1745659231197,0.0656,94390.0,94389.0,0.27536806]
[1745659233795,0.0347,94390.0,94389.0,0.27536806]
[1745659234603,0.0347,94390.0,94389.0,0.2757494]
[1745659236097,0.002,94390.0,94389.0,0.2757494]
[1745659236304,0.002,94390.0,94389.0,0.27574894]
[1745659236498,0.002,94390.0,94389.0,0.63654894]
[1745659238304,0.002,94390.0,94389.0,0.63654787]
[1745659240007,0.002,94390.0,94389.0,0.63654788]
[1745659242909,0.002,94390.0,94389.0,0.27574788]
[1745659243113,0.002,94390.0,94389.0,0.63654788]
[1745659243613,0.06611523,94414.0,94413.0,0.2117462]
[1745659243814,0.03317524,94414.0,94413.0,0.22830118]
[1745659244108,0.03317524,94414.0,94413.0,0.32830118]
[1745659244406,0.02523031,94414.0,94413.0,0.34434291]
[1745659244611,0.21411137,94420.0,94419.0,0.2117328]
[1745659244808,0.21411137,94420.0,94419.0,0.34694485]
[1745659245007,0.21411137,94420.0,94419.0,0.36298658]
[1745659245208,0.21411137,94420.0,94419.0,0.3629824]
[1745659245407,0.21411137,94420.0,94419.0,0.4240824]
[1745659246001,0.3608,94425.0,94424.0,0.2117215]
[1745659246205,0.3608,94425.0,94424.0,0.3282723]
[1745659246405,0.4269,94425.0,94424.0,0.3282723]
[1745659246916,0.4269,94425.0,94424.0,0.3893723]
[1745659247111,0.3608,94444.0,94427.0,0.2117148]
[1745659247313,0.0331,94435.0,94427.0,0.6890656]
[1745659248512,0.0331,94435.0,94427.0,0.6725148]
[1745659248810,0.0331,94435.0,94427.0,0.68906401]
[1745659249019,0.0142,94428.0,94427.0,0.68906401]
[1745659250011,0.0529102,94460.0,94427.0,0.58324921]
[1745659250214,0.0617,94450.0,94449.0,0.2116655]
[1745659250409,0.1217,94450.0,94449.0,0.22821471]
[1745659251616,0.0347,94450.0,94449.0,0.3116655]
[1745659251819,0.0347,94450.0,94449.0,0.3426655]
[1745659252115,0.0417,94450.0,94449.0,0.35153252]
[1745659253017,0.0705,94450.0,94449.0,0.35153252]
[1745659253218,0.0377,94450.0,94449.0,0.35153252]
[1745659253521,0.0367,94450.0,94449.0,0.35053252]
[1745659258319,1e-08,94451.0,94450.0,0.2116633]
[1745659258626,1e-08,94451.0,94450.0,0.62054552]
[1745659259123,1e-08,94458.0,94450.0,0.65364552]
[1745659259314,0.0319,94473.0,94471.0,0.1]
[1745659259517,0.0629,94472.0,94471.0,0.2116162]
[1745659259719,0.1129,94472.0,94471.0,0.2116162]
[1745659260322,0.0529052,94469.0,94460.0,0.01832387]
[1745659260523,0.2116276,94466.0,94450.0,0.0332]
[1745659260723,0.2616276,94466.0,94465.0,0.2116276]
[1745659262032,0.05,94466.0,94465.0,0.2116276]
[1745659262233,0.054,94466.0,94465.0,0.2116276]
[1745659263134,0.004,94466.0,94465.0,0.2116276]
[1745659263736,0.004,94466.0,94465.0,0.2431276]
[1745659264333,0.008,94466.0,94465.0,0.25958014]
[1745659264642,0.008,94466.0,94465.0,0.35958014]
[1745659265735,0.008,94466.0,94465.0,0.35967118]
[1745659269137,0.008,94466.0,94465.0,0.72047118]
[1745659269338,0.008,94466.0,94465.0,0.11654358]
[1745659269640,0.028,94466.0,94465.0,0.32817328]
[1745659270734,0.02819245,94466.0,94465.0,0.32817328]
[1745659271542,0.02819245,94466.0,94465.0,0.38927328]
[1745659272134,0.00819245,94466.0,94465.0,0.38927328]
[1745659272747,0.00819245,94466.0,94465.0,0.38922136]
[1745659279844,0.00819245,94466.0,94465.0,0.38908896]
[1745659281654,0.00819245,94466.0,94465.0,0.38912169]
[1745659283351,0.00819245,94466.0,94465.0,0.38901627]
[1745659292250,0.00819245,94466.0,94465.0,0.38923249]
[1745659296656,0.00819245,94466.0,94465.0,0.38907954]
[1745659297755,0.00819245,94466.0,94465.0,0.38884961]
[1745659299656,0.00819245,94466.0,94465.0,0.38887743]
[1745659304746,0.00819245,94466.0,94465.0,0.38878446]
[1745659306567,0.00819245,94466.0,94465.0,0.38860742]
[1745659308467,0.00819245,94466.0,94465.0,0.38884966]
[1745659308863,0.00819245,94466.0,94465.0,1.88884966]
[1745659309167,0.0329,94474.0,94473.0,0.2116117]
[1745659309357,0.0329,94474.0,94473.0,0.32773166]
[1745659309962,0.0329,94474.0,94473.0,0.42483166]
[1745659310864,0.0369,94474.0,94473.0,0.42483166]
[1745659311668,0.0379,94474.0,94473.0,0.42483166]
[1745659313365,0.0339,94474.0,94473.0,0.42483166]
[1745659315460,0.0339,94474.0,94473.0,0.42493902]
[1745659323673,0.0339,94474.0,94473.0,0.4246155]
[1745659324575,0.2555095,94474.0,94473.0,0.2275155]
[1745659324872,0.0529052,94469.0,94464.0,0.0529073]
[1745659325175,0.2116299,94465.0,94464.0,0.2116242]
[1745659325375,0.5724258,94467.0,94466.0,0.2116274]
[1745659325571,0.2645473,94463.0,94462.0,0.2116315]
[1745659325766,0.3045473,94463.0,94462.0,0.2116315]
[1745659326175,0.4196386,94463.0,94462.0,0.2116315]
[1745659326869,1.1063026,94463.0,94462.0,0.2116315]
[1745659327074,0.2116633,94450.0,94449.0,0.00786702]
[1745659327274,0.5824633,94450.0,94449.0,0.2645753]
[1745659327570,0.5824633,94450.0,94449.0,0.28190444]
[1745659327766,0.3708,94450.0,94449.0,0.28190444]
[1745659328368,0.3708,94450.0,94449.0,0.29668408]
[1745659328566,0.3708,94450.0,94449.0,0.30568408]
[1745659329662,0.3708,94450.0,94449.0,0.28835494]
[1745659330167,0.5824633,94450.0,94449.0,0.28835494]
[1745659330767,0.3708,94450.0,94449.0,0.28835494]
[1745659332373,0.4355,94450.0,94449.0,0.28835494]
[1745659332877,0.6471633,94450.0,94449.0,0.28835494]
[1745659334374,0.4355,94450.0,94449.0,0.28835494]
[1745659336072,0.4255,94450.0,94449.0,0.28835494]
[1745659336874,0.6371633,94450.0,94449.0,0.28835494]
[1745659337978,0.4255,94450.0,94449.0,0.28835494]
[1745659338181,0.6371633,94450.0,94449.0,0.28835494]
[1745659340376,0.4255,94450.0,94449.0,0.28835494]
[1745659340777,0.3928,94450.0,94449.0,0.28835494]
[1745659342070,0.3608,94450.0,94449.0,0.45635494]
[1745659342276,0.3608,94450.0,94449.0,0.55635494]
[1745659346080,0.3608,94450.0,94449.0,0.38835494]
[1745659348488,0.0324,94452.0,94451.0,0.211661]
[1745659349186,0.0324,94452.0,94451.0,0.275161]
[1745659350087,0.0324,94452.0,94451.0,0.289161]
[1745659353176,0.3608,94454.0,94453.0,0.2116565]
[1745659353380,0.0323,94458.0,94457.0,0.2116476]
[1745659353980,0.0423,94458.0,94457.0,0.2441476]
[1745659354181,0.0423,94458.0,94457.0,0.26029453]
[1745659354491,0.2539453,94458.0,94457.0,0.01614693]
[1745659354786,0.2539453,94458.0,94457.0,0.02114693]
[1745659354986,0.2539453,94458.0,94457.0,0.23279453]
[1745659355385,0.2864453,94458.0,94457.0,0.23279453]
[1745659355583,0.2864453,94458.0,94457.0,0.23318095]
[1745659356181,0.2864453,94458.0,94457.0,0.23618095]
[1745659356800,0.2874453,94458.0,94457.0,0.22919375]
[1745659357885,0.2864453,94458.0,94457.0,0.23019375]
[1745659359187,0.2864453,94458.0,94457.0,0.23019398]
[1745659359493,0.2874453,94458.0,94457.0,0.22919398]
[1745659360784,0.2874453,94458.0,94457.0,0.22819398]
[1745659360985,0.0758,94458.0,94457.0,0.23219398]
[1745659361181,0.2874453,94458.0,94457.0,0.23219398]
[1745659361692,0.2549453,94458.0,94457.0,0.23219398]
[1745659362291,0.2449453,94458.0,94457.0,0.23219398]
[1745659362491,0.2439453,94458.0,94457.0,0.23319398]
[1745659362686,0.2439453,94458.0,94457.0,0.2166476]
[1745659362992,0.2439453,94458.0,94457.0,0.23319324]
[1745659363291,0.2439453,94458.0,94457.0,0.24927169]
[1745659364790,0.2439453,94458.0,94457.0,0.23319324]
[1745659366291,0.2439453,94458.0,94457.0,0.23279839]
[1745659368178,0.2539453,94458.0,94457.0,0.23248369]
[1745659369185,0.2539453,94458.0,94457.0,0.23245787]
[1745659370990,0.2539453,94458.0,94457.0,0.23145787]
[1745659372684,0.2539453,94458.0,94457.0,0.22845787]
[1745659372887,0.2549453,94458.0,94457.0,0.22845787]
[1745659373091,0.2549453,94458.0,94457.0,0.2126476]
[1745659373688,0.2549453,94458.0,94457.0,0.2156476]
[1745659373887,0.6157453,94458.0,94457.0,0.2156476]
[1745659374495,0.6157453,94458.0,94457.0,0.2126476]
[1745659374791,0.2539453,94458.0,94457.0,0.2136476]
[1745659374997,0.6147453,94458.0,94457.0,0.2136476]
[1745659375395,0.6157453,94458.0,94457.0,0.2126476]
[1745659384895,0.6157453,94458.0,94457.0,0.001]
[1745659385105,0.7837453,94458.0,94457.0,0.001]
[1745659386002,0.7837453,94458.0,94457.0,0.2126476]
[1745659386205,0.6157453,94458.0,94457.0,0.2126476]
[1745659386704,0.6157453,94458.0,94457.0,0.2432476]
[1745659387806,0.6157453,94458.0,94457.0,0.0316]
[1745659388200,0.6157453,94458.0,94457.0,0.0627]
[1745659388401,0.6157453,94458.0,94457.0,0.2743476]
[1745659389912,0.6157453,94458.0,94457.0,0.0627]
[1745659390112,0.6157453,94458.0,94457.0,0.0316]
[1745659392715,0.6157453,94458.0,94457.0,0.001]
[1745659394627,0.6157453,94458.0,94457.0,0.0331]
[1745659394817,0.6157453,94458.0,94457.0,0.2447476]
[1745659397618,0.6157453,94458.0,94457.0,0.0331]
[1745659397818,0.6157453,94458.0,94457.0,0.2447476]
[1745659398323,0.6157453,94458.0,94457.0,0.0331]
[1745659399821,0.6157453,94458.0,94457.0,0.2447476]
[1745659403133,0.2549453,94458.0,94457.0,0.2447476]
[1745659403430,0.6157453,94458.0,94457.0,0.2447476]
[1745659403832,0.6157453,94458.0,94457.0,0.0331]
[1745659404225,0.6157453,94458.0,94457.0,0.2447476]
[1745659405430,0.2549453,94458.0,94457.0,0.2764476]
[1745659405634,0.6157453,94458.0,94457.0,0.2764476]
[1745659406328,0.6157453,94458.0,94457.0,0.0648]
[1745659407136,0.2549453,94458.0,94457.0,0.0648]
[1745659407338,0.6157453,94458.0,94457.0,0.2764476]
[1745659407536,0.6157453,94458.0,94457.0,0.3072476]
[1745659409528,0.2549453,94458.0,94457.0,0.3072476]
[1745659409823,0.6157453,94458.0,94457.0,0.3072476]
[1745659410440,0.6157453,94458.0,94457.0,0.0956]
[1745659411122,0.6157453,94458.0,94457.0,0.3072476]
[1745659411729,0.2549453,94458.0,94457.0,0.3072476]
[1745659411930,0.6157453,94458.0,94457.0,0.3072476]
[1745659416627,0.6777217,94458.0,94457.0,0.3072476]
[1745659417539,0.3169217,94458.0,94457.0,0.3072476]
[1745659417744,0.6777217,94458.0,94457.0,0.3072476]
[1745659419643,0.6777217,94458.0,94457.0,0.0956]
[1745659420438,0.8877217,94458.0,94457.0,0.0956]
[1745659421143,0.2116633,94450.0,94449.0,0.00777964]
[1745659421444,0.21167,94447.0,94446.0,0.0662]
[1745659421641,0.34167,94447.0,94446.0,0.0662]
[1745659421843,0.34167,94447.0,94446.0,0.2778722]
[1745659422141,0.34167,94447.0,94446.0,0.28581636]
[1745659422445,0.34167,94447.0,94446.0,0.07414416]
[1745659422942,0.34167,94447.0,94446.0,0.10724416]
[1745659423142,0.34167,94447.0,94446.0,0.31891636]
[1745659423445,0.34167,94447.0,94446.0,0.32591636]
[1745659424344,0.34167,94447.0,94446.0,0.12324416]
[1745659425041,0.34167,94447.0,94446.0,0.33491636]
[1745659425646,0.34167,94447.0,94446.0,0.32791636]
[1745659425839,0.34167,94447.0,94446.0,0.32191636]
[1745659426041,0.34167,94447.0,94446.0,0.32991636]
[1745659426245,0.34167,94447.0,94446.0,0.32691636]
[1745659426441,0.34167,94447.0,94446.0,0.33191636]
[1745659427352,0.34167,94447.0,94446.0,0.33091636]
[1745659431250,0.70247,94447.0,94446.0,0.33091636]
[1745659431849,0.34167,94447.0,94446.0,0.33091636]
[1745659432253,0.70247,94447.0,94446.0,0.33091636]
[1745659434048,0.70247,94447.0,94446.0,0.49891636]
[1745659435751,0.86360121,94447.0,94446.0,0.49891636]
[1745659436654,0.50280121,94447.0,94446.0,0.49891636]
[1745659436855,0.86360121,94447.0,94446.0,0.49891636]
[1745659438752,0.70247,94447.0,94446.0,0.49891636]
[1745659438949,0.34167,94447.0,94446.0,0.49891636]
[1745659439154,0.70247,94447.0,94446.0,0.49891636]
[1745659439856,0.34167,94447.0,94446.0,0.49891636]
[1745659440053,0.70247,94447.0,94446.0,0.49891636]
[1745659445165,0.57247,94447.0,94446.0,0.49891636]
[1745659448755,0.27465422,94447.0,94446.0,0.49891636]
[1745659452276,0.21167,94447.0,94446.0,0.49891636]
[1745659452675,0.24187,94447.0,94446.0,0.49891636]
[1745659453078,0.25187,94447.0,94446.0,0.49891636]
[1745659454077,0.28257,94447.0,94446.0,0.49891636]
[1745659457580,0.28257,94447.0,94446.0,0.46591636]
[1745659464485,0.28257,94447.0,94446.0,0.18794416]
[1745659464788,0.57257,94447.0,94446.0,0.18794416]
[1745659465184,0.57257,94447.0,94446.0,0.01994416]
[1745659466889,0.57257,94447.0,94446.0,0.00894416]
[1745659467090,0.57257,94447.0,94446.0,0.01294416]
[1745659473883,0.57257,94447.0,94446.0,0.00794416]
[1745659474090,1.29517,94447.0,94446.0,0.001]
[1745659474493,1.29517,94447.0,94446.0,0.002]
[1745659474494,1.29417,94447.0,94446.0,0.002]
[1745659475888,1.29417,94447.0,94446.0,0.005]
[1745659477199,1.29417,94447.0,94446.0,0.01306149]
[1745659480499,1.29417,94447.0,94446.0,0.04526149]
[1745659483801,1.35805014,94447.0,94446.0,0.04526149]
[1745659487904,0.63645014,94447.0,94446.0,0.04526149]
[1745659488106,2.24333014,94447.0,94446.0,1e-07]
[1745659488295,2.41133014,94447.0,94446.0,1e-07]
[1745659488792,2.16133014,94447.0,94446.0,1e-07]
[1745659488996,1.63193014,94447.0,94446.0,1e-07]
[1745659489596,1.63293014,94447.0,94446.0,1e-07]
[1745659490002,0.2116879,94439.0,94438.0,0.00782873]
[1745659490301,0.2117058,94431.0,94430.0,0.0325]
[1745659490502,0.8225058,94431.0,94430.0,0.0648]
[1745659491099,0.8541058,94431.0,94430.0,0.0648]
[1745659491704,0.8225058,94431.0,94430.0,0.2815081]
[1745659491892,0.8225058,94431.0,94430.0,0.07763162]
[1745659492203,0.8225058,94431.0,94430.0,0.45733972]
[1745659493006,0.8225058,94431.0,94430.0,0.46333972]
[1745659497496,0.4617058,94431.0,94430.0,0.46333972]
[1745659497701,0.8225058,94431.0,94430.0,0.46333972]
[1745659498507,0.6125058,94431.0,94430.0,0.46333972]
[1745659502210,0.2517058,94431.0,94430.0,0.46333972]
[1745659502414,0.6125058,94431.0,94430.0,0.46333972]
[1745659504713,0.8825058,94431.0,94430.0,0.46333972]
[1745659506812,0.8825058,94431.0,94430.0,0.25163162]
[1745659507006,0.8825058,94431.0,94430.0,0.21933162]
[1745659507314,0.9133058,94431.0,94430.0,0.05133162]
[1745659507706,0.9133058,94431.0,94427.0,0.00498377]
[1745659507707,0.2117126,94428.0,94427.0,0.00498377]
[1745659508014,0.5817126,94428.0,94427.0,0.00498377]
[1745659508700,0.6439126,94428.0,94427.0,0.00498377]
[1745659509717,0.6439126,94428.0,94427.0,0.01098377]
[1745659509917,0.6439126,94428.0,94427.0,0.01698377]
[1745659510409,0.6439126,94428.0,94427.0,0.02482602]
[1745659511111,0.87552808,94428.0,94427.0,0.02482602]
[1745659513118,0.98142808,94428.0,94427.0,0.01698377]
[1745659515313,0.98142808,94428.0,94427.0,7e-08]
[1745659516516,0.2117597,94407.0,94406.0,0.2117608]
[1745659516717,0.7225597,94407.0,94406.0,0.2117608]
[1745659517314,0.2117642,94405.0,94404.0,0.3102657]
[1745659517516,0.2617642,94405.0,94404.0,0.3102657]
[1745659518314,0.2617642,94405.0,94404.0,0.4782657]
[1745659518517,0.2617642,94405.0,94404.0,0.48630703]
[1745659519311,0.2617642,94405.0,94404.0,0.48930703]
[1745659519919,0.4717642,94405.0,94404.0,0.27754133]
[1745659520120,0.4717642,94405.0,94404.0,0.10954133]
[1745659520414,0.4727642,94405.0,94404.0,0.11454133]
[1745659525624,0.4727642,94405.0,94404.0,0.08164133]
[1745659526918,0.4727642,94405.0,94404.0,0.04934133]
[1745659527421,0.4727642,94405.0,94404.0,0.05234133]
[1745659528317,0.4717642,94405.0,94404.0,0.05134133]
[1745659528920,0.4717642,94405.0,94404.0,0.05034133]
[1745659529315,0.4717642,94405.0,94404.0,0.04634133]
[1745659529521,0.4717642,94405.0,94404.0,0.05034133]
[1745659531417,0.8325642,94405.0,94404.0,0.05034133]
[1745659531919,0.8947642,94405.0,94404.0,0.05034133]
[1745659533144,0.5339642,94405.0,94404.0,0.05034133]
[1745659533320,0.8947642,94405.0,94404.0,0.05034133]
[1745659534225,0.8631642,94405.0,94404.0,0.05034133]
[1745659537119,0.5023642,94405.0,94404.0,0.05034133]
[1745659537419,0.8631642,94405.0,94404.0,0.05034133]
[1745659538818,0.5023642,94405.0,94404.0,0.05034133]
[1745659539020,0.8631642,94405.0,94404.0,0.05034133]
[1745659540620,1.0242457,94405.0,94404.0,0.05034133]
[1745659543729,0.8631642,94405.0,94404.0,0.05034133]
[1745659545226,1.2239642,94405.0,94404.0,0.05034133]
[1745659555729,1.28910435,94405.0,94404.0,0.05034133]
[1745659557233,1.28910435,94405.0,94404.0,0.26210773]
[1745659557430,0.08514015,94405.0,94404.0,0.36210773]
[1745659557628,0.06514015,94405.0,94404.0,0.36210773]
[1745659558231,0.27690435,94405.0,94404.0,0.53010773]